bitfinex/quotes_ETHUSD_20251118
["timestamp","ask_amount","ask_price","bid_price","bid_amount"]
[1763491451446,0.0406,3165.8,3164.2,0.878404]
[1763491451754,0.0406,3165.8,3164.2,1.363704]
[1763491452124,0.4763,3165.6,3164.2,1.363704]
[1763491452529,0.0406,3165.8,3164.2,1.363704]
[1763491452842,0.002,3164.7,3164.2,1.363704]
[1763491455826,0.002,3164.7,3164.2,0.9582]
[1763491456179,0.002,3164.7,3164.2,0.98980356]
[1763491456457,0.002,3164.7,3164.2,1.363704]
[1763491460023,0.002,3164.7,3164.2,0.9582]
[1763491460226,0.002,3164.7,3164.1,0.001]
[1763491460426,0.4783,3164.7,3164.1,0.001]
[1763491460828,0.002,3164.7,3164.2,0.4694]
[1763491461272,0.002,3164.7,3164.2,1.345304]
[1763491463977,0.002,3164.7,3164.2,0.874904]
[1763491464276,0.002,3164.7,3164.2,1.345304]
[1763491464699,0.9581,3164.3,3164.1,0.001]
[1763491464986,0.0053,3164.2,3164.1,0.001]
[1763491465165,0.4899,3164.2,3164.1,0.001]
[1763491465537,0.4715,3164.2,3164.1,0.001]
[1763491466083,0.002,3164.3,3164.2,0.405504]
[1763491466573,0.4735,3164.3,3164.1,0.001]
[1763491466766,0.0053,3164.2,3164.1,0.001]
[1763491467156,0.002,3164.3,3164.2,0.405504]
[1763491467547,0.002,3164.3,3164.1,0.001]
[1763491468385,0.002,3164.3,3164.2,0.874904]
[1763491469246,0.002,3164.3,3164.2,1.345304]
[1763491475596,0.002,3164.3,3164.2,0.874904]
[1763491477289,0.002,3164.3,3164.2,0.405504]
[1763491477491,0.4693,3164.3,3164.1,0.001]
[1763491477999,0.002,3164.3,3164.1,0.001]
[1763491478808,0.4673,3164.2,3164.1,0.001]
[1763491480277,0.9566,3164.2,3164.1,0.001]
[1763491480471,0.002,3164.3,3164.1,0.4688]
[1763491480684,0.002,3164.3,3164.1,0.001]
[1763491483324,0.002,3164.3,3164.2,0.873304]
[1763491485785,0.002,3164.3,3164.2,1.366404]
[1763491486112,0.002,3164.3,3164.2,0.873304]
[1763491486814,0.002,3164.3,3164.2,0.405504]
[1763491487923,0.4693,3164.3,3164.2,0.405504]
[1763491489525,0.9691,3164.3,3164.2,0.405504]
[1763491491291,0.4693,3164.3,3164.2,0.405504]
[1763491491821,0.9691,3164.3,3164.2,0.405504]
[1763491492328,0.002,3164.3,3164.2,0.405504]
[1763491492524,0.4693,3164.3,3164.2,0.405504]
[1763491492823,0.9691,3164.3,3164.2,0.405504]
[1763491495905,0.002,3164.3,3164.2,0.405504]
[1763491496111,0.4693,3164.3,3164.2,0.405504]
[1763491497009,0.002,3164.3,3164.2,0.873304]
[1763491497313,0.4693,3164.3,3164.2,0.405504]
[1763491497906,0.002,3164.3,3164.2,0.873304]
[1763491498108,0.002,3164.3,3164.2,1.366404]
[1763491499238,0.002,3164.3,3164.2,0.873304]
[1763491500548,0.4693,3164.3,3164.2,0.405504]
[1763491500944,0.002,3164.3,3164.2,0.405504]
[1763491501139,0.4693,3164.3,3164.1,0.001]
[1763491501459,0.5054,3164.2,3164.1,0.001]
[1763491502527,0.0056,3164.2,3164.1,0.001]
[1763491503455,0.002,3164.3,3164.1,0.874304]
[1763491503638,0.002,3164.3,3164.2,1.366404]
[1763491503956,0.002,3164.3,3164.2,0.405504]
[1763491504143,0.4693,3164.3,3164.2,0.405504]
[1763491504347,0.4693,3164.3,3164.1,0.001]
[1763491504348,0.9691,3164.3,3164.1,0.001]
[1763491504525,0.0056,3164.2,3164.1,0.001]
[1763491504726,0.5054,3164.2,3164.1,0.001]
[1763491508949,0.80193722,3164.2,3164.1,0.001]
[1763491509942,0.5054,3164.2,3164.1,0.001]
[1763491510657,0.0056,3164.2,3164.1,0.001]
[1763491511226,0.5055,3164.2,3164.1,0.001]
[1763491512772,0.0056,3164.2,3164.1,0.001]
[1763491513140,0.5055,3164.2,3164.1,0.001]
[1763491513858,0.002,3164.3,3164.1,0.001]
[1763491514539,0.9677,3164.2,3164.1,0.001]
[1763491514739,0.002,3164.3,3164.1,0.001]
[1763491514945,0.002,3164.3,3164.2,0.881504]
[1763491515142,0.68228953,3165.3,3164.6,0.476]
[1763491515340,0.1,3166.0,3165.0,0.405504]
[1763491515542,0.1,3166.0,3165.7,6.56010843]
[1763491515965,0.1,3166.0,3165.7,1.31249664]
[1763491517167,0.1,3166.0,3165.7,2.24739664]
[1763491517372,0.1,3166.0,3165.7,2.4721363]
[1763491517868,0.1,3166.0,3165.7,2.0132363]
[1763491518566,0.1,3167.0,3166.0,0.405504]
[1763491518947,0.1,3167.0,3166.2,0.405504]
[1763491519136,0.1,3167.0,3166.4,0.405504]
[1763491519340,0.1,3167.0,3166.5,0.405504]
[1763491519946,0.1,3167.0,3166.2,0.405504]
[1763491520262,0.1,3167.0,3166.2,0.587504]
[1763491520657,0.1,3167.0,3166.2,1.061604]
[1763491521366,0.6746,3166.9,3166.2,0.587504]
[1763491521577,0.6746,3166.9,3165.9,0.405504]
[1763491521736,0.4927,3166.8,3165.8,0.1886]
[1763491521935,0.4927,3166.8,3165.3,1.10449264]
[1763491521936,0.5125,3165.9,3165.3,0.1975]
[1763491522158,0.4927,3166.8,3165.3,0.1975]
[1763491522368,0.4927,3166.7,3165.4,0.4741]
[1763491522685,0.4927,3166.7,3165.5,0.405504]
[1763491522971,0.4927,3166.7,3165.4,0.4741]
[1763491523187,0.4927,3166.7,3165.3,0.1975]
[1763491523557,0.4927,3166.7,3165.4,0.405504]
[1763491523760,0.4927,3166.7,3165.4,0.879604]
[1763491528193,0.4927,3166.7,3165.6,0.405504]
[1763491528597,0.4927,3166.7,3165.4,0.405504]
[1763491530194,0.4927,3166.7,3165.4,0.879604]
[1763491533279,0.4927,3166.7,3165.4,0.405504]
[1763491533475,0.1819,3166.9,3165.6,0.405504]
[1763491533476,0.6746,3166.9,3165.6,0.405504]
[1763491533869,0.4927,3166.8,3165.7,0.405504]
[1763491534190,0.1819,3166.9,3165.7,0.405504]
[1763491534388,0.6746,3166.9,3165.9,0.405504]
[1763491534707,0.4927,3166.8,3165.9,0.405504]
[1763491535672,0.4927,3166.8,3165.9,0.4741]
[1763491535975,0.4927,3166.8,3166.0,0.405504]
[1763491537972,0.4927,3166.8,3165.6,0.405504]
[1763491538409,0.03184525,3166.7,3165.4,0.4975]
[1763491538648,0.48,3166.6,3165.5,0.405504]
[1763491538826,0.1819,3166.9,3165.5,0.405504]
[1763491539025,0.6619,3166.9,3165.7,0.405504]
[1763491539417,0.102,3167.0,3165.9,0.405504]
[1763491539619,0.102,3167.0,3166.8,0.4517]
[1763491540039,0.102,3167.0,3166.5,0.903004]
[1763491540243,0.4934,3166.9,3166.2,0.405504]
[1763491540641,0.6901,3166.9,3166.3,0.405504]
[1763491540948,0.6901,3166.9,3166.8,0.857204]
[1763491540949,0.002,3166.9,3166.8,0.857204]
[1763491541539,0.002,3166.9,3166.8,1.354704]
[1763491542532,0.002,3166.9,3166.8,0.857204]
[1763491543327,0.002,3166.9,3166.8,1.354704]
[1763491545550,0.1,3168.0,3167.4,0.405504]
[1763491545755,0.1,3168.0,3167.9,1.76419664]
[1763491545958,0.1,3168.0,3167.9,3.08034337]
[1763491546257,0.1,3169.0,3167.9,3.08034337]
[1763491546418,0.1,3169.0,3168.9,0.934504]
[1763491547566,0.1,3169.0,3168.9,0.405504]
[1763491547854,0.1,3169.0,3168.9,0.857204]
[1763491549037,0.1,3169.0,3168.9,0.405504]
[1763491549562,0.1,3169.0,3168.9,0.857204]
[1763491550057,0.1,3169.0,3168.9,0.405504]
[1763491550428,1.0424,3169.0,3167.8,0.1908]
[1763491550643,0.0045,3168.6,3167.8,0.1908]
[1763491550920,0.48,3168.5,3167.8,0.1908]
[1763491551255,0.6544,3167.9,3167.0,0.4975]
[1763491551668,0.48,3168.1,3167.4,0.405504]
[1763491551964,0.48,3168.1,3167.1,0.4975]
[1763491552169,0.48,3168.1,3167.1,0.6883]
[1763491552851,0.48,3168.1,3167.2,0.405504]
[1763491553021,0.48,3168.1,3167.1,0.6883]
[1763491553458,0.48,3168.1,3167.2,0.405504]
[1763491553944,0.48,3168.6,3167.2,0.903004]
[1763491554967,0.48,3168.6,3167.2,0.405504]
[1763491556026,0.48,3168.6,3167.2,0.903004]
[1763491556426,0.48,3168.6,3167.4,0.405504]
[1763491556625,0.48,3168.6,3167.5,0.4975]
[1763491557728,0.48,3168.6,3167.3,0.4975]
[1763491558556,0.48,3168.6,3167.4,0.405504]
[1763491558853,0.48,3168.6,3167.5,0.001]
[1763491560056,0.48,3168.6,3167.5,0.406504]
[1763491560365,0.48,3168.6,3167.5,0.001]
[1763491561062,0.4622,3167.6,3167.5,0.001]
[1763491562368,0.1967,3167.8,3167.5,0.001]
[1763491562778,0.1967,3168.9,3167.7,0.4517]
[1763491562994,1.05287,3168.8,3167.8,1.354704]
[1763491563154,0.6767,3168.9,3167.8,0.4517]
[1763491563356,0.48,3168.8,3167.9,0.405504]
[1763491563765,0.48,3168.8,3167.5,0.001]
[1763491563971,0.48,3168.8,3168.0,0.405504]
[1763491564862,0.102,3169.0,3168.8,0.405504]
[1763491565068,0.102,3169.0,3168.8,0.857204]
[1763491565649,0.102,3169.0,3168.9,0.405504]
[1763491566559,0.5542,3169.0,3168.9,0.405504]
[1763491566891,0.102,3169.0,3168.9,0.405504]
[1763491567063,0.102,3169.0,3168.9,0.903004]
[1763491567263,0.102,3169.0,3168.9,1.384404]
[1763491567664,0.102,3169.0,3168.9,0.903004]
[1763491568095,0.102,3169.0,3168.9,1.384404]
[1763491568496,0.1,3170.0,3168.9,1.384404]
[1763491568497,0.1,3170.0,3169.0,1.31249664]
[1763491568686,0.1,3170.0,3169.9,1.093804]
[1763491569112,0.1,3170.0,3169.9,1.575204]
[1763491569437,0.1,3171.0,3170.2,1.31249664]
[1763491569599,0.1,3171.0,3170.5,0.903004]
[1763491570937,0.45925426,3170.6,3170.5,0.405504]
[1763491571243,0.91885426,3170.6,3170.5,0.268864]
[1763491571437,0.91885426,3170.6,3169.6,0.3101506]
[1763491571637,0.91885426,3170.6,3169.1,0.95025367]
[1763491571638,0.91885426,3170.6,3169.2,0.18572463]
[1763491571790,0.91885426,3170.6,3168.9,3.51979633]
[1763491571992,0.00705426,3170.6,3168.9,3.51979633]
[1763491573210,0.46665426,3170.6,3168.9,3.51979633]
[1763491573416,0.46665426,3170.6,3169.0,0.405504]
[1763491573616,0.46665426,3170.6,3169.0,1.45649664]
[1763491573818,0.46665426,3170.6,3169.2,0.405504]
[1763491574196,0.46665426,3170.6,3169.1,0.6416293]
[1763491574396,0.46665426,3170.6,3168.4,0.61842612]
[1763491574397,0.46665426,3170.6,3168.4,0.76242612]
[1763491575442,0.46665426,3170.6,3168.7,0.144]
[1763491575855,0.46665426,3170.6,3168.4,0.61842612]
[1763491576058,0.46665426,3170.6,3168.6,0.144]
[1763491576442,0.46665426,3170.6,3168.9,0.405504]
[1763491576653,0.03184525,3170.5,3168.1,6.85193602]
[1763491576822,0.03184525,3170.5,3168.2,0.144]
[1763491577017,0.4596,3170.4,3168.2,0.144]
[1763491577238,0.4596,3170.4,3168.3,0.405504]
[1763491577451,0.4596,3170.4,3168.2,0.144]
[1763491577634,0.4596,3170.4,3168.3,0.405504]
[1763491578038,0.4596,3170.4,3168.5,0.405504]
[1763491578439,0.4596,3170.4,3168.2,0.405504]
[1763491578770,0.4596,3170.4,3168.5,0.144]
[1763491578928,0.4596,3170.4,3168.2,0.549504]
[1763491579122,3.33,3170.3,3168.3,0.144]
[1763491579489,0.37896,3170.2,3168.3,0.144]
[1763491579676,0.4596,3170.1,3168.2,0.405504]
[1763491579840,0.4596,3170.1,3168.1,0.0463]
[1763491580660,0.4596,3170.1,3168.2,0.549504]
[1763491580839,0.4596,3170.1,3168.2,0.405504]
[1763491581035,0.4596,3170.1,3168.3,0.144]
[1763491583282,0.4596,3170.1,3168.2,0.405504]
[1763491584065,0.4596,3170.1,3168.2,0.549504]
[1763491585559,0.4596,3170.1,3168.2,0.405504]
[1763491585967,0.4596,3170.1,3168.2,0.549504]
[1763491586167,0.4596,3170.1,3168.2,0.405504]
[1763491586375,0.4596,3170.1,3168.3,0.144]
[1763491586585,0.4596,3170.1,3168.5,0.405504]
[1763491586880,0.4596,3170.1,3168.4,1.31249664]
[1763491587047,0.4596,3170.1,3168.4,0.144]
[1763491587250,0.4596,3170.1,3168.2,0.405504]
[1763491587554,0.4596,3170.1,3168.5,0.144]
[1763491587784,0.4596,3170.1,3168.4,0.405504]
[1763491588278,0.4596,3170.1,3168.3,0.144]
[1763491588279,0.4596,3170.1,3168.5,0.144]
[1763491589784,0.4793,3170.4,3168.7,1.31249664]
[1763491589990,0.4793,3170.4,3168.9,0.405504]
[1763491590161,0.4793,3170.4,3169.1,0.405504]
[1763491590655,0.4793,3170.4,3169.3,0.405504]
[1763491591056,0.4793,3170.4,3168.9,0.549504]
[1763491591259,0.00905426,3170.6,3170.4,0.405504]
[1763491591685,0.00905426,3170.6,3170.5,0.549504]
[1763491592797,0.00905426,3170.6,3170.5,0.693504]
[1763491594071,0.002,3170.6,3170.5,0.693504]
[1763491595073,0.002,3170.6,3170.5,0.549504]
[1763491595960,0.002,3170.6,3170.5,0.693504]
[1763491596164,0.002,3170.6,3170.5,0.549504]
[1763491596364,0.002,3170.6,3170.5,0.693504]
[1763491598412,0.002,3170.6,3170.5,0.549504]
[1763491599112,0.002,3170.6,3170.5,0.693504]
[1763491599610,0.1,3171.0,3170.7,0.144]
[1763491599814,0.1,3171.0,3170.9,0.549504]
[1763491600218,0.1,3171.0,3170.9,0.693504]
[1763491600923,0.1,3171.0,3170.9,0.549504]
[1763491603615,0.555,3171.0,3169.9,7.1765414]
[1763491603785,0.555,3171.0,3169.9,6.94963602]
[1763491603984,0.555,3171.0,3170.0,1.74595624]
[1763491604312,0.1,3171.0,3170.0,0.8389636]
[1763491604513,0.1,3171.0,3170.1,0.549504]
[1763491605211,0.1,3171.0,3170.2,0.405504]
[1763491605405,0.1,3171.0,3170.2,0.549504]
[1763491606681,0.1,3171.0,3170.1,0.405504]
[1763491607026,0.1,3171.0,3170.9,0.549504]
[1763491607797,0.1,3171.0,3170.9,0.405504]
[1763491608415,1.0071,3171.0,3170.9,0.405504]
[1763491608720,1.0071,3171.0,3170.2,0.20074602]
[1763491608932,0.6501,3170.9,3170.2,0.20074602]
[1763491609137,0.6501,3170.9,3170.1,0.62734249]
[1763491609340,0.4521,3170.8,3169.4,0.90699264]
[1763491609488,0.4521,3170.8,3169.4,0.144]
[1763491609691,0.4521,3170.8,3169.4,1.6982688]
[1763491609933,0.4521,3170.8,3169.4,1.05099264]
[1763491610088,0.4521,3170.8,3169.5,0.74540447]
[1763491610291,0.4521,3170.8,3168.9,6.5470521]
[1763491610612,0.4521,3170.8,3168.6,0.54166153]
[1763491610920,0.4521,3170.8,3168.6,0.144]
[1763491611228,0.4521,3170.8,3168.7,0.144]
[1763491611387,0.4521,3170.8,3168.7,0.77612032]
[1763491611593,0.4521,3170.8,3169.0,0.90699264]
[1763491611796,0.4521,3170.8,3169.1,0.549504]
[1763491612099,0.4521,3170.8,3169.5,1.31249664]
[1763491612421,0.4521,3170.8,3169.7,0.405504]
[1763491613722,0.4521,3170.8,3169.3,0.405504]
[1763491614125,0.4521,3170.8,3168.3,0.001]
[1763491614126,0.198,3169.4,3168.3,0.001]
[1763491614442,0.3059,3169.2,3168.3,0.001]
[1763491614943,0.4521,3169.1,3168.3,0.001]
[1763491615720,0.4521,3169.1,3169.0,0.001]
[1763491616246,0.9071,3169.1,3169.0,0.001]
[1763491617842,0.9071,3169.1,3168.3,0.001]
[1763491618140,0.5039,3168.4,3168.3,0.001]
[1763491618740,0.956,3168.4,3168.3,0.001]
[1763491623515,0.956,3168.4,3167.5,0.001]
[1763491623720,0.4535,3167.6,3167.5,0.001]
[1763491623939,0.4521,3168.3,3167.5,0.001]
[1763491624252,0.4521,3168.2,3167.5,0.001]
[1763491624575,0.455,3167.6,3167.5,0.001]
[1763491624916,0.9071,3167.6,3167.5,0.001]
[1763491629015,0.7897,3167.5,3167.1,0.001]
[1763491629156,0.4202,3167.2,3167.1,0.001]
[1763491629655,0.4202,3167.2,3166.8,0.001]
[1763491629656,0.9059,3167.2,3166.8,0.001]
[1763491629862,0.3041,3167.1,3166.8,0.001]
[1763491630063,0.7898,3167.1,3166.8,0.001]
[1763491631103,0.3041,3167.1,3166.8,0.001]
[1763491631464,0.4857,3167.4,3166.8,0.001]
[1763491633298,0.4857,3167.8,3167.0,0.406504]
[1763491633662,0.4857,3167.8,3167.0,0.001]
[1763491634098,0.4911,3167.1,3167.0,0.001]
[1763491634286,0.4857,3167.8,3167.0,0.001]
[1763491634598,0.4857,3167.7,3167.0,0.001]
[1763491636380,0.4857,3167.7,3167.6,0.4939]
[1763491636704,10.232,3168.7,3168.2,0.4939]
[1763491636705,0.002,3168.7,3168.2,0.4939]
[1763491636866,0.002,3168.7,3168.6,0.899404]
[1763491637495,0.002,3168.7,3168.6,1.385204]
[1763491638006,0.1,3171.0,3168.7,0.405504]
[1763491638310,0.4857,3170.7,3169.3,1.31249664]
[1763491638515,0.4857,3170.7,3169.3,0.405504]
[1763491638714,0.03184525,3170.8,3170.6,0.4939]
[1763491638915,0.1,3171.0,3170.9,0.4939]
[1763491639116,0.1,3171.0,3170.9,0.405504]
[1763491639301,0.1,3172.0,3170.9,0.405504]
[1763491639302,0.1,3172.0,3171.0,0.405504]
[1763491639487,0.1,3172.0,3171.2,1.31249664]
[1763491639813,0.1,3172.0,3171.4,0.405504]
[1763491640681,0.1,3172.0,3171.2,0.405504]
[1763491641393,0.1,3172.0,3171.2,0.896504]
[1763491641591,0.1805,3171.9,3171.2,0.405504]
[1763491641790,0.6504,3171.9,3170.6,0.1272]
[1763491642305,0.4699,3171.8,3170.6,0.1272]
[1763491642500,0.4699,3171.8,3170.7,0.405504]
[1763491642903,0.4699,3171.8,3170.6,0.1272]
[1763491643113,0.4699,3171.8,3170.2,0.491]
[1763491643478,0.4699,3171.8,3170.3,0.405504]
[1763491645595,0.50174525,3171.8,3170.2,0.405504]
[1763491645797,0.4699,3171.8,3170.1,0.405504]
[1763491646114,0.03184525,3171.7,3170.1,0.405504]
[1763491646482,0.4699,3171.6,3170.1,0.405504]
[1763491651201,0.4699,3171.6,3170.2,0.03154375]
[1763491651408,0.4699,3171.6,3170.1,0.896504]
[1763491651601,0.4699,3171.6,3169.9,6.4030521]
[1763491651808,0.1805,3170.2,3169.3,0.0315527]
[1763491652116,1.92868819,3171.6,3169.5,6.4030521]
[1763491652117,0.4699,3171.6,3169.5,6.4030521]
[1763491652322,0.4699,3171.5,3169.7,0.405504]
[1763491652554,0.4699,3171.5,3170.0,0.001]
[1763491652908,0.4699,3171.5,3170.1,1.036904]
[1763491655044,0.1805,3170.2,3170.0,0.001]
[1763491655245,0.4719,3170.1,3170.0,0.001]
[1763491655541,0.9418,3170.1,3170.0,0.001]
[1763491659222,0.1805,3170.2,3170.0,0.001]
[1763491659625,0.1992,3170.4,3170.0,0.001]
[1763491660534,0.8752,3170.1,3170.0,0.001]
[1763491660958,0.1992,3170.4,3170.0,0.001]
[1763491661156,0.663,3170.4,3170.0,0.001]
[1763491662025,0.1992,3170.4,3170.0,0.001]
[1763491662372,0.4638,3170.3,3170.0,0.001]
[1763491663136,0.4614,3170.1,3170.0,0.001]
[1763491663486,0.9252,3170.1,3170.0,0.001]
[1763491665837,0.1992,3170.4,3170.0,0.001]
[1763491666055,0.4638,3170.4,3170.0,0.001]
[1763491666547,0.4614,3170.1,3170.0,0.001]
[1763491667402,0.9252,3170.1,3170.0,0.001]
[1763491674401,0.663,3170.6,3170.0,0.001]
[1763491674581,0.1992,3170.6,3170.0,0.001]
[1763491675807,0.663,3170.6,3170.0,0.001]
[1763491676306,0.4614,3170.1,3170.0,0.001]
[1763491677269,0.9252,3170.1,3170.0,0.001]
[1763491678694,0.4614,3170.1,3170.0,0.001]
[1763491679092,0.9252,3170.1,3170.0,0.001]
[1763491679391,0.4614,3170.1,3170.0,0.001]
[1763491679769,0.9252,3170.1,3170.0,0.001]
[1763491680399,0.4614,3170.1,3170.0,0.001]
[1763491680579,0.9252,3170.1,3170.0,0.001]
[1763491680782,0.4614,3170.1,3170.0,0.001]
[1763491681489,0.9252,3170.1,3170.0,0.001]
[1763491681912,0.67996607,3171.4,3170.0,0.4655]
[1763491682239,0.002,3171.5,3170.6,0.405504]
[1763491682403,0.002,3171.5,3171.3,0.4645]
[1763491683111,0.002,3171.5,3171.4,0.4645]
[1763491683513,0.002,3171.5,3171.4,1.337504]
[1763491685032,0.002,3171.5,3170.1,0.95544828]
[1763491685218,0.4634,3171.5,3170.9,0.1404]
[1763491685422,0.4634,3171.5,3170.4,0.4675]
[1763491685621,0.2439,3170.5,3170.0,0.001]
[1763491685930,0.242,3170.1,3170.0,0.001]
[1763491686292,0.722,3170.1,3170.0,0.001]
[1763491686996,0.1992,3170.5,3170.0,0.001]
[1763491687198,0.48,3170.4,3170.0,0.001]
[1763491687815,0.4813,3170.1,3170.0,0.001]
[1763491688213,0.9613,3170.1,3170.0,0.001]
[1763491688632,0.85073278,3171.6,3170.3,0.1469]
[1763491688867,0.1882,3171.9,3170.4,0.405504]
[1763491689085,0.48,3171.8,3170.4,0.875304]
[1763491689893,0.48,3171.8,3170.4,0.405504]
[1763491690182,0.102,3172.0,3171.4,0.1404]
[1763491690540,0.1882,3171.9,3171.2,0.405504]
[1763491690763,0.1882,3171.9,3171.1,0.1404]
[1763491691471,0.102,3172.0,3171.2,0.875304]
[1763491691677,0.003,3173.3,3171.5,0.90699264]
[1763491691836,0.003,3173.3,3173.0,0.405504]
[1763491692272,0.003,3173.3,3172.9,0.1272]
[1763491692979,0.003,3173.3,3172.9,0.597]
[1763491693175,0.003,3173.3,3172.9,0.1272]
[1763491693507,0.003,3173.3,3172.3,0.4698]
[1763491693695,0.003,3173.3,3172.6,0.1272]
[1763491694062,0.003,3173.3,3172.6,0.597]
[1763491694262,0.003,3173.3,3172.7,0.4698]
[1763491694461,0.003,3173.3,3172.8,0.405504]
[1763491694891,0.003,3173.3,3173.0,0.405504]
[1763491695299,0.003,3173.3,3173.2,0.405504]
[1763491695725,0.003,3173.3,3172.6,0.1272]
[1763491696521,0.003,3173.3,3172.7,0.405504]
[1763491696813,0.003,3173.3,3172.0,0.1802]
[1763491697118,0.003,3173.3,3172.3,0.4698]
[1763491697279,0.003,3173.3,3172.0,0.1802]
[1763491697610,0.003,3173.3,3172.2,0.405504]
[1763491699115,0.48,3173.2,3172.0,0.1802]
[1763491699513,0.48,3173.2,3172.1,0.405504]
[1763491701208,0.48,3173.2,3171.6,0.4698]
[1763491701612,0.48,3173.2,3171.7,0.405504]
[1763491701978,0.48,3173.2,3171.2,0.4992]
[1763491702478,0.48,3173.2,3171.3,0.405504]
[1763491702680,0.48,3173.2,3171.2,0.4992]
[1763491702880,0.48,3173.2,3170.8,0.4992]
[1763491703311,0.90699264,3173.0,3170.8,0.4992]
[1763491703512,7.24549176,3172.9,3170.3,0.6461]
[1763491703728,0.90699264,3172.7,3170.3,0.6461]
[1763491704093,0.4617,3172.6,3170.3,0.6461]
[1763491704488,0.4617,3172.6,3170.5,0.405504]
[1763491705113,0.4617,3172.6,3170.6,0.4992]
[1763491706289,0.4617,3172.6,3170.4,0.405504]
[1763491706490,0.4617,3172.6,3170.0,0.001]
[1763491706491,6.80678358,3172.2,3170.0,0.001]
[1763491706743,0.90699264,3172.0,3170.0,0.001]
[1763491707036,9.31871136,3172.1,3170.0,0.001]
[1763491707037,0.90699264,3171.8,3170.0,0.001]
[1763491707371,0.1833,3170.1,3170.0,0.001]
[1763491707828,0.645,3170.1,3170.0,0.001]
[1763491708518,0.1833,3170.7,3170.0,0.001]
[1763491708921,0.4617,3170.9,3170.1,0.1469]
[1763491709442,0.4617,3170.9,3170.0,0.001]
[1763491713427,3.891634,3170.8,3170.0,0.001]
[1763491713634,0.405504,3170.8,3170.0,0.001]
[1763491713836,0.63911966,3170.7,3170.0,0.001]
[1763491714236,0.4617,3170.6,3170.0,0.001]
[1763491714655,0.4871,3170.1,3170.0,0.001]
[1763491715156,0.9488,3170.1,3170.0,0.001]
[1763491717255,4.43981664,3170.1,3170.0,0.001]
[1763491717425,1.31249664,3170.0,3169.9,0.001]
[1763491717625,4.62607664,3170.0,3169.9,0.001]
[1763491717824,0.405504,3169.7,3167.6,0.4905]
[1763491718036,11.57400022,3169.7,3167.6,0.4905]
[1763491718355,0.405504,3169.3,3166.8,0.001]
[1763491718555,0.1336,3169.0,3166.8,0.001]
[1763491718755,0.1336,3169.0,3167.1,0.4905]
[1763491718921,0.4916,3168.9,3167.1,0.4905]
[1763491721446,0.4916,3168.7,3166.8,0.001]
[1763491721838,0.4916,3168.7,3167.1,0.4905]
[1763491723821,0.90699264,3168.4,3166.8,0.001]
[1763491724025,0.77137762,3168.3,3166.8,0.001]
[1763491724223,1.26297762,3168.3,3166.8,0.001]
[1763491724438,0.4916,3168.2,3166.8,0.001]
[1763491726066,0.1904,3167.1,3166.8,0.001]
[1763491726648,0.1904,3168.0,3166.8,0.001]
[1763491726854,0.1904,3168.0,3167.0,0.9624]
[1763491727672,0.4916,3168.3,3167.1,0.4905]
[1763491728764,0.4916,3168.3,3167.0,0.001]
[1763491732168,0.4916,3168.3,3167.0,0.4915]
[1763491732969,0.4916,3168.3,3167.0,0.001]
[1763491738260,0.4916,3168.3,3167.0,0.4915]
[1763491738876,0.4916,3168.3,3167.1,0.405504]
[1763491739677,0.4916,3168.3,3167.0,0.4915]
[1763491741203,0.4916,3168.3,3167.0,0.001]
[1763491741688,0.90699264,3168.2,3167.0,0.001]
[1763491741884,0.47285926,3168.1,3167.0,0.001]
[1763491742091,0.6749,3167.1,3167.0,0.001]
[1763491742286,1.1665,3167.1,3167.0,0.001]
[1763491742459,0.6749,3167.1,3167.0,0.001]
[1763491742659,1.1665,3167.1,3167.0,0.001]
[1763491744677,7.26479519,3168.0,3167.0,0.001]
[1763491744678,0.682,3167.6,3167.0,0.001]
[1763491744878,0.1904,3167.6,3167.0,0.001]
[1763491745080,0.679184,3167.8,3167.1,0.1469]
[1763491745081,0.1904,3167.8,3167.1,0.1469]
[1763491745282,0.1904,3167.8,3167.0,0.001]
[1763491745283,0.4916,3167.7,3167.0,0.001]
[1763491745466,0.4845,3167.2,3167.0,0.001]
[1763491745863,0.4845,3167.1,3167.0,0.001]
[1763491746297,0.9391,3167.1,3167.0,0.001]
[1763491747073,1.84609264,3167.1,3167.0,0.001]
[1763491747277,3.11223096,3167.1,3167.0,0.001]
[1763491748994,1.26613832,3167.1,3167.0,0.001]
[1763491749192,2.05273754,3167.8,3167.0,0.001]
[1763491749193,0.84509108,3167.7,3167.0,0.001]
[1763491749506,0.80389926,3167.8,3167.1,0.6344]
[1763491749507,0.83992603,3167.8,3167.1,0.6344]
[1763491749721,0.68102677,3168.1,3167.7,0.4955]
[1763491749872,0.6808403,3168.3,3167.7,0.4955]
[1763491750206,0.4546,3168.5,3167.7,0.4955]
[1763491750374,0.4546,3168.5,3167.3,0.4875]
[1763491751710,3.33,3168.2,3167.0,0.001]
[1763491751883,4.91783294,3168.1,3167.0,0.001]
[1763491752078,0.90699264,3167.9,3167.0,0.001]